fUSD/lending_fUSD_20250622
["ID","MTS","AMOUNT","RATE_DAILY","PERIOD"]
[366913190,1750567856485,-490.0,0.00019178,2]
[366913191,1750567856499,-1088.23,0.00019178,2]
[366913192,1750567856513,-1088.23,0.00019178,2]
[366913193,1750567856527,-1088.23,0.00019178,2]
[366913194,1750567856540,-2249.67,0.00019178,2]
[366913195,1750567856555,-1088.23,0.00019178,2]
[366913196,1750567856569,-1088.23,0.00019178,2]
[366913197,1750567856582,-1088.23,0.00019178,2]
[366913198,1750567856596,-3380.07,0.00019178,2]
[366913199,1750567856611,-2651.28,0.00019178,2]
[366913200,1750567856626,-1088.23,0.00019178,2]
[366913201,1750567856640,-1088.23,0.00019178,2]
[366913202,1750567856654,-490.0,0.00019178,2]
[366913203,1750567856668,-2467.78,0.00019178,2]
[366913204,1750567856682,-1088.23,0.00019178,2]
[366913205,1750567856696,-191.89738591,0.00019178,2]
[366913206,1750567856710,-500.0,0.00019178,2]
[366913207,1750567856725,-500.0,0.00019178,2]
[366913208,1750567856740,-500.0,0.00019178,2]
[366913209,1750567856754,-500.0,0.00019178,2]
[366913210,1750567856768,-490.0,0.00019178,2]
[366913211,1750567856782,-490.0,0.00019178,2]
[366913212,1750567856795,-9034.01,0.00019178,2]
[366913213,1750567856811,-500.0,0.00019178,2]
[366913214,1750567856825,-490.0,0.00019178,2]
[366913215,1750567856838,-500.0,0.00019178,2]
[366913216,1750567856853,-500.0,0.00019178,2]
[366913217,1750567856867,-490.0,0.00019178,2]
[366913218,1750567856880,-490.0,0.00019178,2]
[366913219,1750567856894,-1102.4,0.00019178,2]
[366913220,1750567856908,-490.0,0.00019178,2]
[366913221,1750567856922,-1250.12,0.00019178,2]
[366913222,1750567856935,-1529.92,0.00019178,2]
[366913223,1750567856949,-1472.08,0.00019178,2]
[366913224,1750567856963,-3251.54,0.00019178,2]
[366913225,1750567856977,-490.0,0.00019178,2]
[366913226,1750567856991,-1185.31,0.00019178,2]
[366913227,1750567857006,-490.0,0.00019178,2]
[366913228,1750567857020,-519.31,0.00019178,2]
[366913229,1750567857034,-1998.17,0.00019178,2]
[366913230,1750567857047,-490.0,0.00019178,2]
[366913231,1750567857062,-1067.88,0.00019178,2]
[366913232,1750567857076,-490.0,0.00019178,2]
[366913233,1750567857090,-578.85,0.00019178,2]
[366913234,1750567857105,-11361.05,0.00019178,2]
[366913235,1750567857119,-490.0,0.00019178,2]
[366913236,1750567857135,-340.35797072,0.00019178,2]
[366913237,1750567857149,-2088.86,0.00019178,2]
[366913238,1750567857164,-490.0,0.00019178,2]
[366913239,1750567857177,-490.0,0.00019178,2]
[366913240,1750567857191,-1413.4,0.00019178,2]
[366913241,1750567857205,-1675.75,0.00019178,2]
[366913242,1750567857219,-535.36,0.00019178,2]
[366913243,1750567857232,-535.36,0.00019178,2]
[366913244,1750567857246,-535.36,0.00019178,2]
[366913245,1750567857259,-490.0,0.00019178,2]
[366913246,1750567857272,-490.0,0.00019178,2]
[366913247,1750567857286,-493.64132587,0.00019178,2]
[366913248,1750567857300,-535.36,0.00019178,2]
[366913249,1750567857314,-535.36,0.00019178,2]
[366913250,1750567857328,-490.0,0.00019178,2]
[366913251,1750567857341,-490.0,0.00019178,2]
[366913252,1750567857356,-5032.43,0.00019178,2]
[366913253,1750567857370,-3093.79,0.00019178,2]
[366913254,1750567857383,-1500.88,0.00019178,2]
[366913255,1750567857395,-1121.35,0.00019178,2]
[366913256,1750567857404,-1449.96,0.00019178,2]
[366913257,1750567857413,-490.0,0.00019178,2]
[366913258,1750567857423,-490.0,0.00019178,2]
[366913259,1750567857432,-4347.78,0.00019178,2]
[366913260,1750567857441,-490.0,0.00019178,2]
[366913261,1750567857451,-490.0,0.00019178,2]
[366913262,1750567857461,-386.39378245,0.00019178,2]
[366913263,1750567857470,-490.0,0.00019178,2]
[366913264,1750567857479,-995.02,0.00019178,2]
[366913265,1750567857489,-490.0,0.00019178,2]
[366913266,1750567857498,-1652.81,0.00019178,2]
[366913267,1750567857508,-490.0,0.00019178,2]
[366913268,1750567857517,-490.0,0.00019178,2]
[366913269,1750567857526,-2390.29,0.00019178,2]
[366913270,1750567857536,-490.0,0.00019178,2]
[366913271,1750567857545,-2776.12,0.00019178,2]
[366913272,1750567857556,-1764.02,0.00019178,2]
[366913273,1750567857566,-701.27,0.00019178,2]
[366913274,1750567858050,-726.9,0.00019178,2]
[366913275,1750567858080,-490.0,0.00019178,2]
[366913276,1750567858099,-490.0,0.00019178,2]
[366913277,1750567858139,-490.0,0.00019178,2]
[366913278,1750567858160,-490.0,0.00019178,2]
[366913279,1750567858171,-4017.95,0.00019178,2]
[366913280,1750567858181,-490.0,0.00019178,2]
[366913281,1750567858190,-4281.86,0.00019178,2]
[366913282,1750567858200,-490.0,0.00019178,2]
[366913283,1750567858210,-500.0,0.00019178,2]
[366913284,1750567858220,-500.0,0.00019178,2]
[366913285,1750567858229,-490.0,0.00019178,2]
[366913286,1750567858239,-500.0,0.00019178,2]
[366913287,1750567858248,-550.19985758,0.00019178,2]
[366913288,1750567858258,-500.0,0.00019178,2]
[366913289,1750567858267,-500.0,0.00019178,2]
[366913290,1750567858277,-533.84124689,0.00019178,2]
[366913291,1750567858287,-490.0,0.00019178,2]
[366913292,1750567858299,-490.0,0.00019178,2]
[366913293,1750567858308,-743.26,0.00019178,2]
[366913294,1750567858318,-518.83,0.00019178,2]
[366913295,1750567858328,-851.83,0.00019178,2]
[366913296,1750567858337,-490.0,0.00019178,2]
[366913297,1750567858347,-1742.93,0.00019178,2]
[366913298,1750567858356,-490.0,0.00019178,2]
[366913299,1750567858365,-490.0,0.00019178,2]
[366913300,1750567858375,-688.4,0.00019178,2]
[366913301,1750567858385,-2580.43,0.00019178,2]
[366913302,1750567858394,-490.0,0.00019178,2]
[366913303,1750567858403,-1051.21,0.00019178,2]
[366913304,1750567858413,-1126.66,0.00019178,2]
[366913305,1750567858423,-490.0,0.00019178,2]
[366913306,1750567858432,-7435.41,0.00019178,2]
[366913307,1750567858442,-1702.18,0.00019178,2]
[366913308,1750567858452,-490.0,0.00019178,2]
[366913309,1750567858462,-1403.46,0.00019178,2]
[366913310,1750567858472,-1806.88,0.00019178,2]
[366913311,1750567858481,-567.47,0.00019178,2]
[366913312,1750567858491,-490.0,0.00019178,2]
[366913313,1750567858501,-3212.52,0.00019178,2]
[366913314,1750567858511,-666.0,0.00019178,2]
[366913315,1750567858520,-170.97,0.00019178,2]
[366913316,1750567858530,-329.31,0.00019178,2]
[366913317,1750567858540,-455.61,0.00019178,2]
[366913318,1750567858551,-150.0,0.00019178,2]
[366913319,1750567858561,-355.09,0.00019178,2]
[366913320,1750567858570,-455.61,0.00019178,2]
[366913321,1750567858579,-150.0,0.00019178,2]
[366913322,1750567858589,-168.0,0.00019184,2]
[366913323,1750567858598,-168.0,0.00019188,2]
[366913324,1750567858607,-5822.29,0.00019199,2]
[366913325,1750567858617,-535.36,0.00019199,2]
[366913326,1750567858626,-9573.54302667,0.000192,2]
[366913327,1750567858635,-47082.80191879,0.000192,2]
[366913328,1750567858645,-10233.4257629,0.000192,2]
[366913329,1750567858655,-559.53616,0.000192,2]
[366913330,1750567858664,-502.66133715,0.00019205,2]
[366913331,1750567858673,-500.0,0.00019205,2]
[366913332,1750567858683,-150.0,0.00019205,2]
[366913333,1750567858692,-150.0,0.00019205,2]
[366913334,1750567858701,-500.0,0.00019205,2]
[366913335,1750567858710,-221.37678721,0.00019205,2]
[366913336,1750567858720,-500.0,0.00019205,2]
[366913337,1750567858730,-3139.81875585,0.00019209,2]
[366913338,1750567858739,-500.0,0.00019233,2]
[366913339,1750567858748,-150.0,0.00019233,2]
[366913340,1750567858758,-150.0,0.00019233,2]
[366913341,1750567858767,-205.50049229,0.00019233,2]
[366913342,1750567858776,-500.0,0.00019233,2]
[366913343,1750567858785,-1328.0,0.00019258,2]
[366913344,1750567858795,-500.0,0.00019259,2]
[366913345,1750567858805,-500.0,0.0001926,2]
[366913346,1750567858814,-500.0,0.0001926,2]
[366913347,1750567858823,-198.89188358,0.0001926,2]
[366913348,1750567858832,-202.757602,0.0001926,2]
[366913349,1750567858842,-500.0,0.0001926,2]
[366913350,1750567858851,-500.0,0.0001926,2]
[366913351,1750567858860,-500.0,0.0001926,2]
[366913352,1750567858870,-150.0,0.0001926,2]
[366913353,1750567858879,-500.0,0.0001926,2]
[366913354,1750567858888,-150.0,0.0001926,2]
[366913355,1750567858897,-150.0,0.0001926,2]
[366913356,1750567858906,-150.0,0.0001926,2]
[366913357,1750567858915,-500.0,0.0001926,2]
[366913358,1750567858924,-150.0,0.0001926,2]
[366913359,1750567858933,-500.0,0.0001926,2]
[366913360,1750567858942,-252.32051416,0.0001926,2]
[366913361,1750567858951,-155.2209032,0.0001926,2]
[366913362,1750567858960,-500.0,0.0001926,2]
[366913363,1750567858969,-9573.54302667,0.00019261,2]
[366913364,1750567858978,-1328.34890166,0.00019264,2]
[366913365,1750567858988,-711.0,0.00019271,2]
[366913366,1750567858997,-299.81422455,0.00019274,2]
[366913367,1750567859007,-500.0,0.00019287,2]
[366913368,1750567859016,-500.0,0.00019287,2]
[366913369,1750567859027,-500.0,0.00019287,2]
[366913370,1750567859037,-500.0,0.00019287,2]
[366913371,1750567859046,-500.0,0.00019287,2]
[366913372,1750567859056,-150.46444261,0.00019287,2]
[366913373,1750567859065,-500.0,0.00019287,2]
[366913374,1750567859075,-150.79857448,0.00019287,2]
[366913375,1750567859084,-150.48351388,0.00019287,2]
[366913376,1750567859094,-150.0,0.00019287,2]
[366913377,1750567859103,-500.0,0.00019287,2]
[366913378,1750567859112,-150.0,0.00019287,2]
[366913379,1750567859122,-500.0,0.00019288,2]
[366913380,1750567859133,-339.59044936,0.00019288,2]
[366913381,1750567859143,-500.99245321,0.00019315,2]
[366913382,1750567859152,-501.44140873,0.00019315,2]
[366913383,1750567859161,-500.68412876,0.00019315,2]
[366913384,1750567859171,-567.82057631,0.00019315,2]
[366913385,1750567859180,-500.0,0.00019315,2]
[366913386,1750567859189,-180.9730098,0.00019315,2]
[366913387,1750567859199,-150.9151092,0.00019315,2]
[366913388,1750567859208,-221.89726734,0.00019315,2]
[366913389,1750567859218,-150.0,0.00019315,2]
[366913390,1750567859227,-359.49837882,0.00019315,2]
[366913391,1750567859237,-9573.54302667,0.00019322,2]
[366913392,1750567859247,-9999.99,0.00019339,2]
[366913393,1750567859257,-1831.44,0.00019339,2]
[366913394,1750567859267,-150.99,0.00019339,2]
[366913395,1750567859277,-7206.99,0.00019339,2]
[366913396,1750567859286,-275.88,0.00019339,2]
[366913397,1750567859297,-999.99,0.00019339,2]
[366913398,1750567859306,-1483.36,0.00019339,2]
[366913399,1750567859316,-9999.99,0.00019339,2]
[366913400,1750567859325,-150.99,0.00019339,2]
[366913401,1750567859335,-336.4,0.00019339,2]
[366913402,1750567859344,-152.79956233,0.00019342,2]
[366913403,1750567859354,-255.41984092,0.00019352,2]
[366913404,1750567859363,-164.42141278,0.00019352,3]
[366913405,1750567859372,-160.07156829,0.00019352,2]
[366913406,1750567859381,-23805.52965579,0.00019352,2]
[366913407,1750567859391,-845.98984755,0.00019352,2]
[366913408,1750567859400,-629.05188733,0.00019352,2]
[366913409,1750567859410,-9573.54302667,0.00019382,2]
[366913410,1750567859419,-1775060.01810631,0.00019392,3]
[366913411,1750567860621,-309.24662294,0.00019178,2]
[366913412,1750567860631,-490.0,0.00019178,2]
[366913413,1750567860640,-490.0,0.00019178,2]
[366913414,1750567860650,-490.0,0.00019178,2]
[366913415,1750567860659,-5653.8634345,0.00019392,3]
[366913416,1750567862799,-490.0,0.00019178,2]
[366913417,1750567862810,-259.07604487,0.00019178,2]
[366913418,1750567863021,-230.92395513,0.00019178,2]
[366913419,1750567863032,-490.0,0.00019178,2]
[366913420,1750567863042,-490.0,0.00019178,2]
[366913421,1750567863052,-490.0,0.00019178,2]
[366913422,1750567863063,-46.54629222,0.00019178,2]
[366913423,1750567863085,-712.18370778,0.00019178,2]
[366913424,1750567863095,-1441.11,0.00019178,2]
[366913425,1750567863106,-150.0,0.00019178,2]
[366913426,1750567863118,-312.86202097,0.00019392,3]
[366913427,1750567932319,202.0,0.00016668,2]
[366913428,1750568291946,202.0,0.00016906,2]
[366913429,1750568571429,-150.0,0.000175,2]
[366913430,1750568588172,357.390943,7.945e-05,2]
[366913431,1750568651832,202.0,0.00017173,2]
[366913432,1750568712900,150.0,0.00017458,2]
[366913433,1750568713045,140.609057,0.00017458,2]
[366913500,1750568807357,272.70531882,0.00017357,2]
[366913505,1750568889192,170.92,0.00013699,2]
[366913564,1750569032240,-300.0,0.00017457,2]
[366913566,1750569032250,-1200.0,0.00017457,2]
[366913568,1750569032260,-500.0,0.00017457,2]
[366913570,1750569032270,-9.390943,0.00017458,2]
[366913572,1750569032280,-150.0,0.00017458,2]
[366913574,1750569032289,-150.0,0.00017458,2]
[366913576,1750569032299,-150.0,0.00017458,2]
[366913578,1750569032309,-150.407284,0.00017458,2]
[366913580,1750569032319,-150.0,0.00017458,2]
[366913582,1750569032328,-150.61523136,0.00017458,2]
[366913584,1750569032338,-150.91479738,0.00017458,2]
[366913586,1750569032347,-150.0,0.00017458,2]
[366913588,1750569032357,-150.59477203,0.00017458,2]
[366913590,1750569032366,-150.37718842,0.00017458,2]
[366913592,1750569032376,-202.0,0.00017471,2]
[366913594,1750569032385,-1605.0,0.000175,2]
[366913596,1750569032395,-734.26,0.00017872,2]
[366913598,1750569032405,-195.42,0.00017889,2]
[366913600,1750569032414,-17085.52,0.00017909,2]
[366913602,1750569032424,-1500.0,0.00017909,2]
[366913604,1750569032436,-23900.0,0.00017917,2]
[366913606,1750569032446,-200.0,0.00017923,2]
[366913608,1750569032456,-150.0,0.00017932,2]
[366913610,1750569032465,-200.0,0.00017982,2]
[366913612,1750569032475,-1000.0,0.00018015,2]
[366913614,1750569032485,-437.15,0.00018082,2]
[366913616,1750569032495,-2751.0,0.00018139,2]
[366913618,1750569032505,-164.14,0.00018157,2]
[366913621,1750569032517,-890.23,0.00018212,2]
[366913623,1750569032527,-600.0,0.00018219,2]
[366913625,1750569032537,-5295.77,0.0001822,2]
[366913627,1750569032547,-202.0,0.00018496,2]
[366913629,1750569032557,-170.97,0.000185,2]
[366913631,1750569032567,-198.0,0.0001851,2]
[366913633,1750569032576,-186.0,0.00018601,2]
[366913635,1750569032586,-242.97394804,0.00018661,2]
[366913637,1750569032596,-251.54599156,0.00018661,2]
[366913639,1750569032606,-2789.0,0.00018773,2]
[366913641,1750569032616,-202.0,0.000188,3]
[366913643,1750569032626,-166.76,0.00018819,2]
[366913645,1750569032636,-253.77639371,0.00018979,2]
[366913647,1750569032646,-1957.856,0.00018979,2]
[366913649,1750569032656,-151.0,0.00018979,2]
[366913651,1750569032665,-668.65185757,0.00018979,2]
[366913653,1750569032675,-151.0,0.00018979,2]
[366913655,1750569032687,-152.60158192,0.00018979,2]
[366913657,1750569032698,-331.37731657,0.00018979,2]
[366913658,1750569032708,-169.81644367,0.00018979,2]
[366913661,1750569032719,-200.0,0.00018979,2]
[366913662,1750569032728,-151.0,0.00018979,2]
[366913664,1750569032739,-151.0,0.00018979,2]
[366913667,1750569032749,-151.0,0.00018979,2]
[366913668,1750569032759,-188.0,0.00018979,2]
[366913671,1750569032769,-207.4,0.00018979,2]
[366913673,1750569032779,-680.842,0.00018979,2]
[366913675,1750569032789,-6763.86117376,0.0001899,2]
[366913677,1750569032801,-17983.18243539,0.0001899,2]
[366913679,1750569032811,-356.95,0.00018991,2]
[366913681,1750569032820,-217.0,0.00018997,2]
[366913683,1750569032830,-373.45402299,0.00019018,2]
[366913685,1750569032839,-2030.296672,0.00019034,2]
[366913687,1750569032849,-217.0,0.00019052,2]
[366913689,1750569032858,-420.0,0.00019058,2]
[366913691,1750569032868,-711.0,0.00019075,2]
[366913693,1750569032878,-185.50295852,0.00019078,2]
[366913695,1750569032887,-327.83447739,0.00019078,2]
[366913697,1750569032897,-8414.59595927,0.00019078,2]
[366913699,1750569032907,-166.48401672,0.00019078,2]
[366913701,1750569032917,-778.96371508,0.00019078,2]
[366913703,1750569032927,-6723.20135512,0.00019078,2]
[366913705,1750569032937,-1595.16196512,0.00019078,2]
[366913708,1750569032958,-5173.33303488,0.00019078,2]
[366913710,1750569032968,-272.4435,0.00019078,2]
[366913712,1750569032977,-2792.3475,0.00019078,2]
[366913714,1750569032987,-926.1770442,0.00019083,2]
[366913716,1750569032996,-217.0,0.00019085,2]
[366913718,1750569033006,-1518.26453523,0.00019089,2]
[366913720,1750569033022,-394.79868702,0.00019089,2]
[366913725,1750569033060,-192.35442661,0.00019089,2]
[366913727,1750569033070,-1000.0,0.000191,2]
[366913729,1750569033080,-1000.0,0.000191,2]
[366913731,1750569033090,-1000.0,0.000191,2]
[366913733,1750569033099,-1009.0,0.000191,2]
[366913735,1750569033109,-1000.0,0.000191,2]
[366913737,1750569033118,-8414.59595918,0.00019108,2]
[366913739,1750569033130,-6723.20135503,0.00019108,2]
[366913741,1750569033140,-1165.59,0.00019123,2]
[366913743,1750569033149,-8414.59595918,0.00019139,2]
[366913745,1750569033160,-6723.20135503,0.00019139,2]
[366913747,1750569033169,-2183.31810187,0.00019144,2]
[366913749,1750569033179,-217.0,0.00019149,2]
[366913751,1750569033189,-1680.0,0.00019152,2]
[366913753,1750569033199,-356.9,0.0001916,2]
[366913755,1750569033209,-168.55912531,0.00019168,2]
[366913757,1750569033219,-8414.59595918,0.00019169,2]
[366913759,1750569033228,-6723.20135503,0.00019169,2]
[366913761,1750569033238,-1270.2819914,0.00019171,2]
[366913763,1750569033252,-745.50540582,0.00019171,2]
[366913766,1750569033282,-773.21260278,0.00019171,2]
[366913767,1750569033292,-500.0,0.00019173,2]
[366913768,1750569033302,-179.12,0.00019177,2]
[366913769,1750569033313,-283.26182614,0.00019177,2]
[366913801,1750569037681,-216.73817386,0.00019177,2]
[366913802,1750569037692,-324.88725054,0.00019177,2]
[366913803,1750569037703,-500.0,0.00019177,2]
[366913804,1750569037713,-418.99878503,0.00019177,2]
[366913805,1750569037724,-152.78169288,0.00019177,2]
[366913806,1750569037735,-626.0,0.00019178,2]
[366913807,1750569037745,-490.0,0.00019178,2]
[366913808,1750569037756,-490.0,0.00019178,2]
[366913809,1750569037767,-500.0,0.00019178,2]
[366913810,1750569037776,-490.0,0.00019178,2]
[366913811,1750569037786,-490.0,0.00019178,2]
[366913812,1750569037796,-490.0,0.00019178,2]
[366913813,1750569037807,-490.0,0.00019178,2]
[366913814,1750569037817,-490.0,0.00019178,2]
[366913815,1750569037827,-490.0,0.00019178,2]
[366913816,1750569037837,-300.0,0.00019178,2]
[366913817,1750569037847,-490.0,0.00019178,2]
[366913818,1750569037857,-490.0,0.00019178,2]
[366913819,1750569037868,-490.0,0.00019178,2]
[366913820,1750569037879,-490.0,0.00019178,2]
[366913821,1750569037889,-490.0,0.00019178,2]
[366913822,1750569037900,-490.0,0.00019178,2]
[366913823,1750569037910,-490.0,0.00019178,2]
[366913824,1750569037920,-490.0,0.00019178,2]
[366913825,1750569037931,-490.0,0.00019178,2]
[366913827,1750569037941,-490.0,0.00019178,2]
[366913828,1750569037952,-220.90555601,0.00019178,2]
[366913829,1750569037962,-490.0,0.00019178,2]
[366913830,1750569037972,-490.0,0.00019178,2]
[366913831,1750569037983,-490.0,0.00019178,2]
[366913832,1750569037993,-405.97563364,0.00019178,2]
[366913833,1750569038003,-490.0,0.00019178,2]
[366913834,1750569038013,-490.0,0.00019178,2]
[366913835,1750569038024,-490.0,0.00019178,2]
[366913836,1750569038035,-490.0,0.00019178,2]
[366913837,1750569038045,-584.53,0.00019178,2]
[366913838,1750569038055,-490.0,0.00019178,2]
[366913839,1750569038065,-490.0,0.00019178,2]
[366913840,1750569038075,-490.0,0.00019178,2]
[366913841,1750569038085,-490.0,0.00019178,2]
[366913842,1750569038095,-490.0,0.00019178,2]
[366913843,1750569038106,-490.0,0.00019178,2]
[366913844,1750569038116,-490.0,0.00019178,2]
[366913845,1750569038126,-490.0,0.00019178,2]
[366913846,1750569038137,-490.0,0.00019178,2]
[366913847,1750569038147,-490.0,0.00019178,2]
[366913848,1750569038157,-490.0,0.00019178,2]
[366913849,1750569038167,-490.0,0.00019178,2]
[366913850,1750569038178,-490.0,0.00019178,2]
[366913851,1750569038188,-490.0,0.00019178,2]
[366913852,1750569038198,-1000.0,0.00019178,2]
[366913853,1750569038209,-490.0,0.00019178,2]
[366913854,1750569038220,-490.0,0.00019178,2]
[366913855,1750569038229,-490.0,0.00019178,2]
[366913856,1750569038239,-490.0,0.00019178,2]
[366913857,1750569038249,-490.0,0.00019178,2]
[366913858,1750569038259,-490.0,0.00019178,2]
[366913859,1750569038269,-490.0,0.00019178,2]
[366913860,1750569038280,-857.48,0.00019178,2]
[366913861,1750569038291,-490.0,0.00019178,2]
[366913862,1750569038301,-1158.78,0.00019178,2]
[366913863,1750569038311,-490.0,0.00019178,2]
[366913864,1750569038321,-490.0,0.00019178,2]
[366913865,1750569038331,-490.0,0.00019178,2]
[366913866,1750569038341,-490.0,0.00019178,2]
[366913867,1750569038352,-916.54,0.00019178,2]
[366913868,1750569038363,-490.0,0.00019178,2]
[366913869,1750569038373,-490.0,0.00019178,2]
[366913870,1750569038385,-490.0,0.00019178,2]
[366913871,1750569038395,-494.24586673,0.00019178,2]
[366913872,1750569038405,-490.0,0.00019178,2]
[366913873,1750569038415,-490.0,0.00019178,2]
[366913874,1750569038426,-490.0,0.00019178,2]
[366913875,1750569038440,-490.0,0.00019178,2]
[366913876,1750569038451,-490.0,0.00019178,2]
[366913877,1750569038461,-490.0,0.00019178,2]
[366913878,1750569038471,-319.34731282,0.00019178,2]
[366913879,1750569038483,-490.0,0.00019178,2]
[366913880,1750569038494,-490.0,0.00019178,2]
[366913881,1750569038506,-490.0,0.00019178,2]
[366913882,1750569038517,-832.6,0.00019178,2]
[366913883,1750569038527,-490.0,0.00019178,2]
[366913885,1750569038538,-490.0,0.00019178,2]
[366913887,1750569038548,-491.05939628,0.00019178,2]
[366913889,1750569038560,-490.0,0.00019178,2]
[366913891,1750569038570,-490.0,0.00019178,2]
[366913893,1750569038580,-490.0,0.00019178,2]
[366913895,1750569038590,-500.0,0.00019178,2]
[366913897,1750569038600,-593.47738946,0.00019178,2]
[366913899,1750569038612,-490.0,0.00019178,2]
[366913902,1750569038622,-490.0,0.00019178,2]
[366913904,1750569038633,-767.6,0.00019178,2]
[366913906,1750569038643,-904.29,0.00019178,2]
[366913908,1750569038654,-490.0,0.00019178,2]
[366913909,1750569038664,-315.13859834,0.00019178,2]
[366913911,1750569038673,-490.0,0.00019178,2]
[366913913,1750569038683,-493.48426734,0.00019178,2]
[366913915,1750569038694,-872.98,0.00019178,2]
[366913918,1750569038705,-490.0,0.00019178,2]
[366913920,1750569038715,-490.0,0.00019178,2]
[366913922,1750569038724,-1340.3,0.00019178,2]
[366913923,1750569038734,-490.0,0.00019178,2]
[366913926,1750569038744,-490.0,0.00019178,2]
[366913928,1750569038754,-490.0,0.00019178,2]
[366913930,1750569038763,-490.0,0.00019178,2]
[366913932,1750569038773,-490.0,0.00019178,2]
[366913934,1750569038783,-490.0,0.00019178,2]
[366913936,1750569038792,-283.16356965,0.00019178,2]
[366913938,1750569038802,-490.0,0.00019178,2]
[366913940,1750569038812,-490.0,0.00019178,2]
[366913942,1750569038822,-595.38,0.00019178,2]
[366913944,1750569038831,-490.0,0.00019178,2]
[366913946,1750569038840,-705.78,0.00019178,2]
[366913948,1750569038851,-490.0,0.00019178,2]
[366913950,1750569038860,-494.39383844,0.00019178,2]
[366913952,1750569038870,-681.06,0.00019178,2]
[366913954,1750569038880,-490.0,0.00019178,2]
[366913956,1750569038889,-490.0,0.00019178,2]
[366913958,1750569038899,-490.0,0.00019178,2]
[366913960,1750569038910,-1916.49,0.00019178,2]
[366913962,1750569038920,-491.52465304,0.00019178,2]
[366913964,1750569038930,-490.0,0.00019178,2]
[366913966,1750569038939,-490.0,0.00019178,2]
[366913968,1750569038949,-496.08866803,0.00019178,2]
[366913970,1750569038959,-490.0,0.00019178,2]
[366913972,1750569038968,-1003.19,0.00019178,2]
[366913974,1750569038978,-490.0,0.00019178,2]
[366913976,1750569038988,-493.52477859,0.00019178,2]
[366913978,1750569038998,-490.0,0.00019178,2]
[366913980,1750569039008,-490.0,0.00019178,2]
[366913982,1750569039018,-490.0,0.00019178,2]
[366913984,1750569039028,-490.0,0.00019178,2]
[366913986,1750569039041,-490.0,0.00019178,2]
[366913988,1750569039051,-490.0,0.00019178,2]
[366913990,1750569039060,-490.0,0.00019178,2]
[366913992,1750569039070,-490.0,0.00019178,2]
[366913994,1750569039080,-1668.78,0.00019178,2]
[366913996,1750569039089,-490.0,0.00019178,2]
[366913998,1750569039099,-490.0,0.00019178,2]
[366914001,1750569039110,-490.0,0.00019178,2]
[366914003,1750569039120,-437.52047367,0.00019178,2]
[366914004,1750569039130,-490.0,0.00019178,2]
[366914007,1750569039141,-490.0,0.00019178,2]
[366914009,1750569039151,-490.0,0.00019178,2]
[366914011,1750569039161,-634.42,0.00019178,2]
[366914013,1750569039171,-490.0,0.00019178,2]
[366914015,1750569039180,-490.0,0.00019178,2]
[366914017,1750569039190,-493.36185127,0.00019178,2]
[366914019,1750569039200,-490.0,0.00019178,2]
[366914021,1750569039209,-490.0,0.00019178,2]
[366914023,1750569039219,-490.0,0.00019178,2]
[366914025,1750569039229,-5000.0,0.00019178,2]